[Event "68th Warsaw-ch-A 2019"]
[Site "Warsaw"]
[Date "2019.11.17"]
[Round "7.8"]
[White "Praczukowski, Stanislaw"]
[Black "Poniewierski, Piotr"]
[Result "1/2-1/2"]
[ECO "B12"]
[WhiteElo "2069"]
[BlackElo "1858"]
[Annotator "NA RC"]
[PlyCount "136"]
[EventDate "2019.11.14"]
[EventType "swiss"]
[EventCountry "POL"]
[SourceTitle "playchess.com"]
[Source "ChessBase"]
[SourceQuality "1"]
[TimeControl "5400+30"]

1. e4 {[%emt 0:00:00]} c6 {[%emt 0:00:00]} 2. d4 {[%emt 0:00:00]} g6 {[%emt 0:00:00]} 3. Nc3 {[%emt 0:04:00]} d5 {[%emt 0:00:33]} 4. Nf3 {[%emt 0:02:48]} Bg7 {[%emt 0:00:44]} 5. h3 {[%emt 0:05:17]} Nf6 {[%emt 0:02:22]} 6. e5 {[%emt 0:03:17]} Ne4 {[%emt 0:00:45]} 7. Nxe4 {[%emt 0:01:15]} dxe4 {[%emt 0:00:10]} 8. Ng5 {[%emt 0:00:10]} c5 {[%emt 0:00:20]} 9. c3 {[%emt 0:09:14] B15: Caro-Kann: 3 Nc3: 3...g6 and 3...dxe4 4 Nxe4 Nf6 5 Nxf6+ exf6} Qa5 $146 {[%emt 0:11:25]} ({Predecessor:} 9... cxd4 10. cxd4 O-O 11. Be3 Qd5 12. Rc1 Nc6 13. Bc4 Qa5+ 14. Kf1 Bf5 15. g4 Be6 16. Bxe6 fxe6 17. Nxe6 {1-0 (34) Matlakov,M (2695)-Kuzmicz,K (2469) Wroclaw 2014}) 10. Bc4 {[%emt 0:04:37]} O-O {[%emt 0:00:46]} 11. O-O {[%emt 0:01:17]} cxd4 {[%emt 0:07:05]} 12. cxd4 {[%emt 0:03:08]} Qb4 {[%emt 0:02:04]} 13. Qb3 {[%emt 0:01:27]} Qxb3 {[%emt 0:05:57]} 14. Bxb3 {[%emt 0:02:21]} Nc6 {[%emt 0:01:32]} 15. Be3 {[%emt 0:01:04]} b6 {[%emt 0:02:10]} 16. Nxe4 {[%emt 0:07:16]} Bb7 {[%emt 0:00:29]} 17. Nc3 {[%emt 0:04:27]} Rfd8 {[%emt 0:01:15]} 18. Rfd1 {[%emt 0:01:33]} Na5 {[%emt 0:00:43]} 19. Rac1 {[%emt 0:04:47]} Rac8 {[%emt 0:04:12]} 20. f4 {[%emt 0:04:50]} Nxb3 {[%emt 0:02:36]} 21. axb3 {[%emt 0:00:06]} e6 {[%emt 0:02:19]} 22. Nb5 {[%emt 0:03:23]} Bd5 {[%emt 0:00:31]} 23. Nd6 {[%emt 0:02:59]} Rxc1 {[%emt 0:07:15]} 24. Rxc1 {[%emt 0:01:45]} Bf8 {[%emt 0:00:16]} 25. Rc8 {[%emt 0:23:18]} Rxc8 {[%emt 0:05:42]} 26. Nxc8 {[%emt 0:00:17]} Bxb3 {[%emt 0:00:17]} 27. Nxa7 {[%emt 0:00:17]} Bd5 {[%emt 0:03:52]} 28. Nc8 {[%emt 0:05:22]} b5 {[%emt 0:00:39]} 29. Na7 {[%emt 0:00:48]} b4 {[%emt 0:03:47]} 30. Nc8 {[%emt 0:00:42]} Bb7 {[%emt 0:01:01]} 31. Nb6 {[%emt 0:00:16]} Be7 {[%emt 0:00:50]} 32. Kf2 {[%emt 0:01:06]} Kf8 {[%emt 0:01:12]} 33. Bd2 {[%emt 0:00:47]} Ke8 {[%emt 0:00:56]} 34. Nc4 {[%emt 0:00:44]} Kd7 {[%emt 0:01:15]} 35. g3 {[%emt 0:01:04]} Bh1 {[%emt 0:17:41]} 36. Nd6 {[%emt 0:00:28]} Bxd6 {[%emt 0:00:33]} 37. exd6 {[%emt 0:00:03]} b3 {[%emt 0:00:49]} 38. Bb4 {[%emt 0:00:12]} Bd5 {[%emt 0:01:01]} 39. g4 {[%emt 0:00:14]} f6 {[%emt 0:04:37]} 40. Kg3 {[%emt 0:00:03]} Be4 {[%emt 0:00:44]} 41. h4 {[%emt 0:00:39]} h6 {[%emt 0:01:28]} 42. h5 {[%emt 0:00:23]} gxh5 {[%emt 0:00:50]} 43. gxh5 {[%emt 0:00:09]} Bc2 {[%emt 0:00:12]} 44. Kh4 {[%emt 0:01:20]} Bd3 {[%emt 0:02:57]} 45. Bc5 {[%emt 0:00:32]} Bf5 {[%emt 0:01:53]} 46. Kg3 {[%emt 0:00:15]} Be4 {[%emt 0:00:40]} 47. Bb4 {[%emt 0:00:05]} Bd3 {[%emt 0:00:31]} 48. Kf3 {[%emt 0:01:30]} Bc2 {[%emt 0:00:28]} 49. Kg4 {[%emt 0:00:09]} Bd1+ {[%emt 0:00:13]} 50. Kh4 {[%emt 0:00:01]} Bc2 {[%emt 0:00:31]} 51. Bc5 {[%emt 0:02:56]} Bd3 {[%emt 0:00:32]} 52. Ba3 {[%emt 0:00:09]} Bf5 {[%emt 0:00:39]} 53. Bb4 {[%emt 0:00:01]} Bd3 {[%emt 0:00:30]} 54. d5 {[%emt 0:00:42]} e5 {[%emt 0:02:48]} 55. fxe5 {[%emt 0:00:10]} fxe5 {[%emt 0:00:16]} 56. Bd2 {[%emt 0:01:19]} Kxd6 {[%emt 0:00:43]} 57. Bxh6 {[%emt 0:00:02]} Kxd5 {[%emt 0:00:52]} 58. Bd2 {[%emt 0:00:27]} Ke6 {[%emt 0:00:28]} 59. h6 {[%emt 0:00:10]} Kf6 {[%emt 0:00:32]} 60. Kg3 {[%emt 0:00:07]} Kg6 {[%emt 0:00:41]} 61. Kf2 {[%emt 0:00:04]} Bc2 {[%emt 0:00:33]} 62. Be3 {[%emt 0:00:09]} Bd3 {[%emt 0:00:27]} 63. Ke1 {[%emt 0:00:03]} Bc2 {[%emt 0:00:21]} 64. Kd2 $11 {[%emt 0:00:02]} Kh7 {[%emt 0:00:22]} 65. Kc3 {[%emt 0:00:03]} Kg6 {[%emt 0:00:13]} 66. Kc4 {[%emt 0:00:03]} Kh7 {[%emt 0:00:46]} 67. Kd5 {[%emt 0:00:01]} e4 {[%emt 0:00:41]} 68. Bd2 {[%emt 0:00:05]} Kg6 {[%emt 0:00:39] Kxe4} 1/2-1/2

[Event "68th Warsaw-ch-A 2019"]
[Site "Warsaw"]
[Date "2019.11.17"]
[Round "7.10"]
[White "Janeczko, Jakub"]
[Black "Pichurko, Jakub"]
[Result "1-0"]
[ECO "B03"]
[WhiteElo "1839"]
[BlackElo "1877"]
[Annotator "NA RC"]
[PlyCount "63"]
[EventDate "2019.11.14"]
[EventType "swiss"]
[EventCountry "POL"]
[SourceTitle "playchess.com"]
[Source "ChessBase"]
[SourceQuality "1"]
[TimeControl "5400+30"]

1. e4 {[%emt 0:00:26]} Nf6 {[%emt 0:00:00]} 2. e5 {[%emt 0:00:49]} Nd5 {[%emt 0:00:00]} 3. d4 {[%emt 0:00:08]} d6 {[%emt 0:00:00]} 4. c4 {[%emt 0:00:03]} Nb6 {[%emt 0:00:00]} 5. exd6 {[%emt 0:00:05]} cxd6 {[%emt 0:00:00]} 6. Nc3 {[%emt 0:01:35]} g6 {[%emt 0:00:10]} 7. Be3 {[%emt 0:01:24]} Bg7 {[%emt 0:00:10]} 8. Rc1 {[%emt 0:00:32]} Nc6 {[%emt 0:01:28]} 9. b3 {[%emt 0:02:22]} O-O {[%emt 0:00:29]} 10. d5 {[%emt 0:05:47]} Ne5 {[%emt 0:03:29]} 11. Be2 {[%emt 0:00:03]} Ned7 {[%emt 0:01:55]} 12. f4 {[%emt 0:03:18]} Nf6 {[%emt 0:00:29]} 13. Nf3 {[%emt 0:06:31]} Bg4 {[%emt 0:02:03]} 14. O-O {[%emt 0:03:46]} Bxf3 {[%emt 0:03:51]} 15. Bxf3 {[%emt 0:00:04]} Nbd7 {[%emt 0:02:33]} 16. b4 {[%emt 0:07:50]} b6 {[%emt 0:06:11]} 17. Re1 {[%emt 0:05:48]} Re8 {[%emt 0:04:41]} 18. Nb5 {[%emt 0:01:06]} a5 {[%emt 0:08:12]} 19. a3 {[%emt 0:01:47]} axb4 {[%emt 0:07:17]} 20. axb4 {[%emt 0:00:03]} Kf8 {[%emt 0:05:58]} 21. Bd4 {[%emt 0:10:40]} Qb8 {[%emt 0:06:14]} 22. Qd3 {[%emt 0:03:40]} Ng8 {[%emt 0:05:31]} 23. g4 {[%emt 0:03:12]} Nh6 {[%emt 0:01:47]} 24. Re2 {[%emt 0:05:00]} Qb7 {[%emt 0:09:11]} 25. Rce1 {[%emt 0:00:22]} Bxd4+ {[%emt 0:05:57]} 26. Qxd4 {[%emt 0:00:19]} f6 {[%emt 0:00:40]} 27. Qe4 {[%emt 0:08:59]} f5 {[%emt 0:03:30]} 28. Qd4 {[%emt 0:00:51]} Kf7 {[%emt 0:03:28]} 29. g5 {[%emt 0:00:55]} Ng8 {[%emt 0:00:39]} 30. Qh8 {[%emt 0:03:08]} Ngf6 {[%emt 0:01:15]} 31. Rxe7+ {[%emt 0:00:02]} Rxe7 {[%emt 0:00:27]} 32. Nxd6# {[%emt 0:00:02]} 1-0

[Event "68th Warsaw-ch-A 2019"]
[Site "Warsaw"]
[Date "2019.11.17"]
[Round "7.12"]
[White "Siekierski, Pawel"]
[Black "Grochowski, Kosma"]
[Result "0-1"]
[ECO "D36"]
[WhiteElo "1959"]
[BlackElo "1920"]
[Annotator "NA RC"]
[PlyCount "90"]
[EventDate "2019.11.14"]
[EventType "swiss"]
[EventCountry "POL"]
[SourceTitle "playchess.com"]
[Source "ChessBase"]
[SourceQuality "1"]
[TimeControl "5400+30"]

1. d4 d5 2. Nf3 Nf6 3. c4 c6 4. Nc3 e6 5. Bg5 Nbd7 6. cxd5 exd5 7. Qc2 Bd6 8. e3 h6 9. Bh4 O-O 10. Bd3 Re8 11. O-O Nf8 12. Rab1 Bg4 13. Nd2 Bh5 14. Bg3 Bxg3 15. hxg3 g5 16. b4 Bg6 17. b5 h5 18. bxc6 bxc6 19. Nf3 Bxd3 20. Qxd3 Ne4 21. Ne5 Rc8 22. Nxe4 dxe4 23. Qc4 Qc7 24. Rfc1 c5 25. Qe2 Ne6 26. Qxh5 Kg7 27. Qg4 f6 28. Nc4 cxd4 29. exd4 Nxd4 30. Qd1 Qd7 31. Ne3 Rxc1 32. Rxc1 Rd8 33. Rb1 Kg6 34. g4 Qh7 35. Kf1 Rh8 36. f3 Nxf3 37. Kf2 Nd4 38. Rb4 Rd8 39. Qb1 Qe7 40. Qh1 Qxb4 41. Qh5+ Kg7 42. Nf5+ Nxf5 43. gxf5 Qd2+ 44. Kg3 Rd3+ 45. Kh2 Qf4+ 0-1

[Event "68th Warsaw-ch-A 2019"]
[Site "Warsaw"]
[Date "2019.11.17"]
[Round "7.13"]
[White "Derylo, Kamil"]
[Black "Sacharewicz, Krzysztof"]
[Result "1-0"]
[ECO "A60"]
[WhiteElo "1969"]
[BlackElo "1860"]
[Annotator "NA RC"]
[PlyCount "87"]
[EventDate "2019.11.14"]
[EventType "swiss"]
[EventCountry "POL"]
[SourceTitle "playchess.com"]
[Source "ChessBase"]
[SourceQuality "1"]
[TimeControl "5400+30"]

1. d4 Nf6 2. c4 c5 3. d5 a6 4. a4 e6 5. Nc3 exd5 6. cxd5 d6 7. Nf3 Nbd7 8. e4 Qe7 9. Qc2 g6 10. Be2 Bg7 11. O-O O-O 12. Nd2 Re8 13. Re1 Rb8 14. Bf1 Ng4 15. h3 Nge5 16. Qd1 g5 17. g3 Ng6 18. Nc4 Nde5 19. Nxe5 Qxe5 20. Kh2 Bd7 21. Qd2 Qd4 22. Qxd4 cxd4 23. Nb1 Ne5 24. Kg2 Rbc8 25. Bxg5 Bxh3+ 26. Kxh3 Nf3 27. Nd2 Nxg5+ 28. Kg4 h6 29. f4 Nh7 30. Nc4 Red8 31. a5 Nf6+ 32. Kf3 Ne8 33. e5 dxe5 34. fxe5 Rxd5 35. Nb6 Rcc5 36. Nxd5 Rxd5 37. Bc4 Rc5 38. Rac1 Rxa5 39. e6 fxe6 40. Bxe6+ Kh7 41. g4 Nd6 42. Rc7 Kg6 43. Rd7 Re5 44. Rxg7+ 1-0

[Event "68th Warsaw-ch-A 2019"]
[Site "Warsaw"]
[Date "2019.11.17"]
[Round "7.14"]
[White "Piotrowski, Arkadiusz"]
[Black "Spicak, Krzysztof"]
[Result "1-0"]
[ECO "C50"]
[WhiteElo "1962"]
[BlackElo "1874"]
[Annotator "NA RC"]
[PlyCount "141"]
[EventDate "2019.11.14"]
[EventType "swiss"]
[EventCountry "POL"]
[SourceTitle "playchess.com"]
[Source "ChessBase"]
[SourceQuality "1"]
[TimeControl "5400+30"]

1. e4 e5 2. Nf3 Nc6 3. Bc4 Be7 4. d4 d6 5. h3 Nxd4 6. Nxd4 exd4 7. Qxd4 Bf6 8. Qd3 Ne7 9. Nc3 O-O 10. Be3 Nc6 11. Qd2 Re8 12. Bd3 Be6 13. O-O-O Nb4 14. a3 Bxc3 15. bxc3 Nc6 16. f4 Na5 17. Qe2 f6 18. g4 Qe7 19. Qf2 b6 20. Qh4 Bc4 21. g5 d5 22. gxf6 Qxf6 23. Qxf6 gxf6 24. Bd4 dxe4 25. Bxc4+ Nxc4 26. Bxf6 Kf7 27. Bh4 Nd6 28. Rd5 Re6 29. c4 c6 30. Rh5 Nxc4 31. Rxh7+ Kg6 32. Rc7 e3 33. Rg1+ Kf5 34. Rf7+ Ke4 35. f5 Rh6 36. Bg5 Rxh3 37. Rg4+ Kd5 38. Rd7+ Nd6 39. Bf4 Rh1+ 40. Kb2 e2 41. Bxd6 Rb1+ 42. Ka2 Ra1+ 43. Kb3 Rb1+ 44. Ka4 b5+ 45. Ka5 e1=Q+ 46. Bb4+ Ke5 47. Bxe1 Rxe1 48. Re7+ Kxf5 49. Rxe1 Kxg4 50. Re6 Rc8 51. Kb4 Kf5 52. Re7 a6 53. Kc5 a5 54. c3 Kf6 55. Rd7 b4 56. cxb4 axb4 57. Rd6+ Ke7 58. axb4 Rb8 59. Rxc6 Kd7 60. b5 Rh8 61. Kb6 Rh5 62. Rc1 Kd8 63. Ka6 Rh2 64. b6 Rb2 65. Kb7 Kd7 66. Rd1+ Ke7 67. Ka7 Ra2+ 68. Kb8 Rb2 69. b7 Rb3 70. Ra1 Kd7 71. Ka7 1-0

[Event "68th Warsaw-ch-A 2019"]
[Site "Warsaw"]
[Date "2019.11.18"]
[Round "8.2"]
[White "Deszczynski, Adam"]
[Black "Chomczyk, Marek"]
[Result "1-0"]
[ECO "E06"]
[WhiteElo "2291"]
[BlackElo "2282"]
[Annotator "RC"]
[PlyCount "145"]
[EventDate "2019.11.14"]
[EventType "swiss"]
[EventCountry "POL"]
[SourceTitle "playchess.com"]
[Source "ChessBase"]
[SourceQuality "1"]
[TimeControl "5400+30"]

1. d4 {[%emt 0:00:13]} Nf6 {[%emt 0:00:00]} 2. Nf3 {[%emt 0:01:28]} d5 {[%emt 0:00:23]} 3. c4 {[%emt 0:00:57]} e6 {[%emt 0:00:09]} 4. g3 {[%emt 0:01:57]} Be7 {[%emt 0:00:17]} 5. Bg2 {[%emt 0:00:24]} O-O {[%emt 0:00:09]} 6. O-O {[%emt 0:00:24]} dxc4 {[%emt 0:00:58]} 7. Qc2 {[%emt 0:01:35]} a6 {[%emt 0:00:09]} 8. a4 {[%emt 0:10:59]} Bd7 {[%emt 0:00:07]} 9. Rd1 {[%emt 0:00:41]} Bc6 {[%emt 0:00:09]} 10. Nc3 {[%emt 0:00:30]} Bxf3 {[%emt 0:00:20]} 11. Bxf3 {[%emt 0:00:10]} Nc6 {[%emt 0:00:28]} 12. Bxc6 {[%emt 0:04:15]} bxc6 {[%emt 0:00:08]} 13. a5 {[%emt 0:07:14]} Qb8 {[%emt 0:05:45]} 14. Ra4 {[%emt 0:12:51]} Qb3 {[%emt 0:03:05]} 15. Qxb3 {[%emt 0:01:01]} cxb3 {[%emt 0:00:09]} 16. Rc4 {[%emt 0:00:36]} Rfd8 {[%emt 0:08:14]} 17. Bf4 {[%emt 0:12:31]} Nd5 {[%emt 0:14:24]} 18. Nxd5 {[%emt 0:08:26]} Rxd5 {[%emt 0:02:54]} 19. Bxc7 {[%emt 0:07:26]} Rc8 {[%emt 0:07:21]} 20. e4 {[%emt 0:03:27]} Rd7 {[%emt 0:36:19]} 21. Bb6 {[%emt 0:00:36]} f5 {[%emt 0:01:07]} 22. f3 {[%emt 0:08:02]} fxe4 {[%emt 0:00:08]} 23. fxe4 {[%emt 0:00:02]} Bf6 {[%emt 0:03:05]} 24. Rdc1 {[%emt 0:02:50]} Rf8 {[%emt 0:02:34]} 25. e5 {[%emt 0:01:41]} Bg5 {[%emt 0:00:31]} 26. Rf1 {[%emt 0:00:37]} Be3+ {[%emt 0:04:55]} 27. Kg2 {[%emt 0:00:09]} Rdf7 {[%emt 0:04:11]} 28. Rxf7 {[%emt 0:01:22]} Rxf7 {[%emt 0:00:01]} 29. Rc3 {[%emt 0:00:25]} Rf2+ {[%emt 0:00:08]} 30. Kh3 {[%emt 0:00:02]} Re2 {[%emt 0:00:54]} 31. d5 {[%emt 0:00:50]} c5 {[%emt 0:03:28]} 32. d6 {[%emt 0:01:24]} Bg5 {[%emt 0:00:40]} 33. Rxb3 {[%emt 0:02:17]} Rxe5 {[%emt 0:00:08]} 34. Rd3 {[%emt 0:00:14]} c4 {[%emt 0:01:08]} 35. Rd1 {[%emt 0:03:14]} Re2 {[%emt 0:00:42]} 36. d7 {[%emt 0:01:23]} Rxb2 {[%emt 0:00:07]} 37. Kg4 {[%emt 0:00:59]} Rb5 {[%emt 0:01:57]} 38. h4 {[%emt 0:00:24]} Be7 {[%emt 0:00:55]} 39. d8=Q+ {[%emt 0:01:34]} Bxd8 {[%emt 0:00:02]} 40. Rxd8+ {[%emt 0:00:20]} Kf7 {[%emt 0:00:01]} 41. Rd7+ {[%emt 0:01:43]} Kf6 {[%emt 0:00:09]} 42. Rc7 {[%emt 0:00:34]} h5+ {[%emt 0:00:34]} 43. Kh3 {[%emt 0:00:30]} Rb4 {[%emt 0:00:40]} 44. Bd4+ {[%emt 0:00:08]} Kf5 {[%emt 0:00:33]} 45. Rc5+ {[%emt 0:01:39]} Ke4 {[%emt 0:01:06]} 46. Bxg7 {[%emt 0:00:17]} Kf3 {[%emt 0:00:31]} 47. Rc7 {[%emt 0:00:33]} Rb1 {[%emt 0:00:31]} 48. Rf7+ {[%emt 0:00:15]} Ke4 {[%emt 0:00:04]} 49. Rf4+ {[%emt 0:00:58]} Kd5 {[%emt 0:00:06]} 50. Rd4+ {[%emt 0:00:35]} Kc5 {[%emt 0:00:05]} 51. Rd8 {[%emt 0:00:33]} Rb5 {[%emt 0:00:15]} 52. Bc3 {[%emt 0:00:38]} Rb3 {[%emt 0:00:06]} 53. Rc8+ {[%emt 0:00:46]} Kd5 {[%emt 0:00:11]} 54. Bf6 {[%emt 0:00:40]} e5 {[%emt 0:00:25]} 55. Re8 {[%emt 0:00:32]} Re3 {[%emt 0:00:13]} 56. Kg2 {[%emt 0:00:36]} c3 {[%emt 0:01:49]} 57. Kf2 {[%emt 0:00:22]} Re4 {[%emt 0:01:06]} 58. Rc8 {[%emt 0:00:24]} Kd4 {[%emt 0:00:06]} 59. Bg5 {[%emt 0:01:08]} Kd3 {[%emt 0:00:09]} 60. Rd8+ {[%emt 0:00:29]} Kc2 {[%emt 0:02:29]} 61. Rd6 {[%emt 0:00:25]} Rd4 {[%emt 0:00:39]} 62. Rxa6 {[%emt 0:00:07]} Kd3 {[%emt 0:00:23]} 63. Rc6 {[%emt 0:00:25]} e4 {[%emt 0:00:18]} 64. a6 {[%emt 0:00:33]} Rd7 {[%emt 0:00:05]} 65. Ke1 {[%emt 0:00:58]} Rd5 {[%emt 0:01:03]} 66. a7 {[%emt 0:00:38]} Ra5 {[%emt 0:00:07]} 67. Rd6+ {[%emt 0:00:02]} Kc4 {[%emt 0:00:17]} 68. Be3 {[%emt 0:00:03]} c2 {[%emt 0:00:18]} 69. Kd2 {[%emt 0:00:21]} Ra2 {[%emt 0:01:22]} 70. Rd8 {[%emt 0:00:25]} c1=N+ {[%emt 0:00:10]} 71. Kxc1 {[%emt 0:00:16]} Kc3 {[%emt 0:00:06]} 72. a8=Q {[%emt 0:00:29]} Ra4 {[%emt 0:00:08]} 73. Bd2+ {[%emt 0:00:34]} 1-0

[Event "68th Warsaw-ch-A 2019"]
[Site "Warsaw"]
[Date "2019.11.18"]
[Round "8.8"]
[White "Poniewierski, Piotr"]
[Black "Sadowski, Miroslaw"]
[Result "*"]
[WhiteElo "1858"]
[BlackElo "1998"]
[Annotator "NA RC"]
[PlyCount "118"]
[EventDate "2019.11.14"]
[EventType "swiss"]
[EventCountry "POL"]
[SourceTitle "playchess.com"]
[Source "ChessBase"]
[SourceQuality "1"]
[TimeControl "5400+30"]

1. Nf3 {[%emt 0:00:00]} g6 {[%emt 0:00:00]} 2. g3 {[%emt 0:00:00]} Bg7 {[%emt 0:00:00]} 3. Bg2 {[%emt 0:00:00]} Nf6 {[%emt 0:00:00]} 4. c4 {[%emt 0:00:08]} O-O {[%emt 0:00:00]} 5. O-O {[%emt 0:00:09]} d6 {[%emt 0:00:04]} 6. Nc3 {[%emt 0:00:31]} Nc6 {[%emt 0:00:12]} 7. d3 {[%emt 0:00:55]} a6 {[%emt 0:01:04]} 8. Rb1 {[%emt 0:01:11]} Rb8 {[%emt 0:00:08] A16: English Opening: 1...Nf6 with ...d5} 9. Bg5 {[%emt 0:06:50]} (9. Nd2 Bd7 10. b4 b5 11. a3 Qc8 12. Bb2 Ne5 13. Ba1 Bh3 14. Nde4 Bxg2 15. Nxf6+ exf6 16. Kxg2 {0-1 (38) Mikhalevski,V (2579)-Hakobyan,A (2545) St Petersburg 2018}) 9... h6 {[%emt 0:07:24]} 10. Bd2 {[%emt 0:01:02]} Bd7 {[%emt 0:00:27]} 11. Qc1 $146 {[%emt 0:01:10]} ({Predecessor:} 11. a4 a5 12. e4 Bg4 13. h3 Bxf3 14. Bxf3 Nd7 15. Bg2 Nde5 {0-1 (60) Lueders,G (2261)-Lagunow,A (2440) Berlin 1999}) 11... Kh7 {[%emt 0:01:00]} 12. b4 {[%emt 0:00:19]} b5 {[%emt 0:03:02]} 13. Nd5 {[%emt 0:05:46]} Ng8 {[%emt 0:22:51]} 14. Qc2 {[%emt 0:16:30]} e6 {[%emt 0:00:29]} 15. Ne3 {[%emt 0:01:28]} Nd4 {[%emt 0:09:03]} 16. Nxd4 {[%emt 0:04:56]} Bxd4 {[%emt 0:00:03]} 17. Rfc1 {[%emt 0:04:55]} c6 {[%emt 0:03:21]} 18. Nd1 {[%emt 0:05:12]} d5 {[%emt 0:06:14]} 19. e3 {[%emt 0:06:04]} Bg7 {[%emt 0:00:22]} 20. Bc3 {[%emt 0:00:31]} Bxc3 {[%emt 0:03:26]} 21. Qxc3 {[%emt 0:02:04]} Qf6 {[%emt 0:03:06]} 22. f4 {[%emt 0:03:46]} bxc4 {[%emt 0:02:20]} 23. dxc4 {[%emt 0:00:55]} Qxc3 {[%emt 0:01:59]} 24. Nxc3 {[%emt 0:01:16]} Nf6 {[%emt 0:00:28]} 25. Na4 {[%emt 0:00:53]} Rfe8 {[%emt 0:02:47]} 26. Nc5 Bc8 27. Nd3 {[%emt 0:05:05]} Nd7 {[%emt 0:03:23]} 28. Kf2 {[%emt 0:07:36]} Bb7 {[%emt 0:06:35]} 29. a4 {[%emt 0:11:45]} Rec8 {[%emt 0:06:02]} 30. a5 {[%emt 0:01:33]} Kg7 {[%emt 0:01:39]} 31. g4 {[%emt 0:01:03]} Kf8 {[%emt 0:08:50]} 32. h4 {[%emt 0:00:53]} Ke7 {[%emt 0:00:18]} 33. g5 {[%emt 0:01:35]} hxg5 {[%emt 0:00:10]} 34. hxg5 {[%emt 0:00:13]} Ba8 {[%emt 0:01:41]} 35. cxd5 {[%emt 0:02:23]} cxd5 {[%emt 0:00:19]} 36. Ke2 {[%emt 0:02:13]} Bc6 {[%emt 0:01:03]} 37. Kd2 {[%emt 0:00:38]} Ba4 {[%emt 0:01:28]} 38. Rxc8 {[%emt 0:00:45]} Rxc8 {[%emt 0:00:05]} 39. Rc1 {[%emt 0:00:17]} Rh8 {[%emt 0:00:30]} 40. Kc3 {[%emt 0:01:44]} Kd6 {[%emt 0:00:59]} 41. Kd4 {[%emt 0:00:54]} Bb5 {[%emt 0:00:25] [#]} 42. e4 {[%emt 0:01:45]} (42. Ne5 $1 $16 {[%cal Re5f7]} Nxe5 43. fxe5+ Kd7 44. Bf1) 42... dxe4 {[%emt 0:01:45]} 43. Bxe4 {[%emt 0:00:18]} Rh4 {[%emt 0:00:38]} 44. Ke3 {[%emt 0:01:41]} Rh3+ {[%emt 0:01:11]} 45. Kd4 {[%emt 0:00:28]} Rh4 {[%emt 0:00:06]} 46. Rc8 {[%emt 0:00:35]} Rh2 $16 {[%emt 0:02:51]} (46... f6 $11 {keeps the balance.}) 47. Kc3 {[%emt 0:01:17]} e5 {[%emt 0:00:35]} 48. Nxe5 {[%emt 0:01:00]} Nxe5 {[%emt 0:00:06]} 49. fxe5+ {[%emt 0:00:24]} Kxe5 {[%emt 0:00:06]} 50. Bd3 {[%emt 0:01:11]} Rh3 {[%emt 0:00:42]} 51. Rc5+ {[%emt 0:00:25]} Kd6 {[%emt 0:00:25]} 52. Rxb5 {[%emt 0:00:54]} axb5 {[%emt 0:00:05]} 53. Kd4 {[%emt 0:00:22]} Rh4+ {[%emt 0:00:23]} 54. Be4 {[%emt 0:00:20]} Kc7 {[%emt 0:00:33]} 55. Kd5 {[%emt 0:01:04]} Rg4 {[%emt 0:00:12]} 56. Ke5 {[%emt 0:00:26]} Rxg5+ {[%emt 0:00:13]} 57. Kf6 {[%emt 0:00:26]} Rg4 {[%emt 0:00:10]} 58. Bd5 {[%emt 0:00:43]} Rxb4 {[%emt 0:00:38]} 59. Bxf7 {[%emt 0:00:14]} Rf4+ {[%emt 0:00:26]} *

[Event "68th Warsaw-ch-A 2019"]
[Site "Warsaw"]
[Date "2019.11.18"]
[Round "8.9"]
[White "Cyra, Dariusz"]
[Black "Urbaniak, Karol"]
[Result "1-0"]
[ECO "A45"]
[WhiteElo "1818"]
[BlackElo "1812"]
[Annotator "NA RC"]
[PlyCount "47"]
[EventDate "2019.11.14"]
[EventType "swiss"]
[EventCountry "POL"]
[SourceTitle "playchess.com"]
[Source "ChessBase"]
[SourceQuality "1"]
[TimeControl "5400+30"]

1. d4 {[%emt 0:00:00]} Nf6 {[%emt 0:01:02]} 2. Bf4 {[%emt 0:00:00]} d5 {[%emt 0:00:44]} 3. e3 {[%emt 0:00:08]} Bf5 {[%emt 0:01:49]} 4. c4 {[%emt 0:00:47]} e6 {[%emt 0:00:13]} 5. Qb3 {[%emt 0:00:50]} Nbd7 {[%emt 0:01:40]} 6. Nc3 {[%emt 0:01:46]} Bd6 {[%emt 0:01:57]} 7. Bxd6 {[%emt 0:07:33]} cxd6 {[%emt 0:00:09]} 8. cxd5 {[%emt 0:02:11]} Qa5 {[%emt 0:01:18]} 9. Bc4 {[%emt 0:04:27]} exd5 {[%emt 0:06:51]} 10. Bxd5 {[%emt 0:14:30]} Nxd5 {[%emt 0:03:31]} 11. Qxd5 {[%emt 0:00:25]} Qxd5 {[%emt 0:03:58]} 12. Nxd5 {[%emt 0:00:12]} Be4 {[%emt 0:00:51]} 13. Nf4 {[%emt 0:03:13]} g5 {[%emt 0:02:20]} 14. f3 {[%emt 0:00:15]} gxf4 {[%emt 0:04:19]} 15. fxe4 {[%emt 0:00:03]} fxe3 {[%emt 0:03:13]} 16. Ke2 {[%emt 0:18:30]} Rc8 {[%emt 0:02:32]} 17. Kxe3 {[%emt 0:01:20]} Rc2 {[%emt 0:00:21]} 18. Ne2 {[%emt 0:00:33]} Rxb2 {[%emt 0:00:46]} 19. Rhb1 {[%emt 0:00:18]} Rb6 {[%emt 0:02:11]} 20. Nf4 {[%emt 0:05:22]} Rg8 {[%emt 0:00:44]} 21. Kf3 {[%emt 0:05:24]} Rxb1 {[%emt 0:05:51]} 22. Rxb1 {[%emt 0:00:02]} b6 {[%emt 0:00:15]} 23. Rc1 {[%emt 0:04:12]} Rg5 {[%emt 0:02:10]} 24. Rc8+ {[%emt 0:10:08]} 1-0